[Event "Hungarian Youth-ch I 2024"]
[Site "Szolnok"]
[Date "2024.04.03"]
[Round "4.8"]
[White "Bodrogi, Bendeguz"]
[Black "Gergely, Daniel"]
[Result "1-0"]
[ECO "A07"]
[WhiteElo "2316"]
[BlackElo "2230"]
[Annotator "RC"]
[PlyCount "149"]
[EventDate "2024.03.31"]
[EventType "swiss"]
[EventCountry "HUN"]
[SourceTitle "playchess.com"]
[Source "ChessBase"]
[SourceQuality "1"]
[TimeControl "5400+30"]

1. Nf3 {[%emt 0:03:17]} d5 {[%emt 0:00:20]} 2. g3 {[%emt 0:00:46]} c6 {[%emt 0:00:31]} 3. Bg2 {[%emt 0:00:24]} Nf6 {[%emt 0:00:38]} 4. O-O {[%emt 0:00:17]} Bg4 {[%emt 0:00:24]} 5. d4 {[%emt 0:00:20]} Nbd7 {[%emt 0:00:17]} 6. c4 {[%emt 0:00:31]} e6 {[%emt 0:01:15]} 7. h3 {[%emt 0:00:07]} Bf5 {[%emt 0:00:35]} 8. Nc3 {[%emt 0:00:11]} h6 {[%emt 0:00:42]} 9. Nd2 {[%emt 0:01:52]} Be7 {[%emt 0:00:56]} 10. e4 {[%emt 0:03:47]} dxe4 {[%emt 0:00:20]} 11. Ndxe4 {[%emt 0:00:12]} Nxe4 {[%emt 0:00:26]} 12. Nxe4 {[%emt 0:00:26]} Nf6 {[%emt 0:00:19]} 13. Nc3 {[%emt 0:01:19]} O-O {[%emt 0:01:13]} 14. Be3 {[%emt 0:04:00]} Rc8 {[%emt 0:03:43]} 15. Qb3 {[%emt 0:11:17]} Qd7 {[%emt 0:01:11]} 16. Rfd1 {[%emt 0:02:28]} Bd6 {[%emt 0:01:27]} 17. a4 {[%emt 0:21:37]} Rfd8 {[%emt 0:18:25]} 18. a5 {[%emt 0:02:00]} Qe7 {[%emt 0:15:46]} 19. Re1 {[%emt 0:09:01]} Qd7 {[%emt 0:06:00]} 20. a6 {[%emt 0:02:06]} b6 {[%emt 0:01:32]} 21. Rad1 {[%emt 0:00:09]} Re8 {[%emt 0:05:12]} 22. Qa4 {[%emt 0:07:45]} Red8 {[%emt 0:11:23]} 23. Rd2 {[%emt 0:12:06]} Kh8 {[%emt 0:06:14]} 24. Ra1 {[%emt 0:01:19]} Qe8 {[%emt 0:01:19]} 25. Re1 {[%emt 0:02:50]} Qd7 {[%emt 0:00:14]} 26. Rdd1 {[%emt 0:01:57]} Kg8 {[%emt 0:00:12]} 27. Rc1 {[%emt 0:00:31]} Bd3 {[%emt 0:03:35]} 28. b3 {[%emt 0:01:57]} Bf5 {[%emt 0:06:39]} 29. b4 {[%emt 0:03:03]} Bd3 {[%emt 0:02:58]} 30. b5 {[%emt 0:00:52]} c5 {[%emt 0:00:50]} 31. Bc6 {[%emt 0:02:31]} Qe7 {[%emt 0:02:15]} 32. Rcd1 {[%emt 0:00:07]} cxd4 {[%emt 0:02:47]} 33. Bxd4 {[%emt 0:00:04]} Bf5 {[%emt 0:01:34]} 34. Kg2 {[%emt 0:02:33]} Nh5 {[%emt 0:02:49]} 35. Ne4 {[%emt 0:00:43]} Bb4 {[%emt 0:01:46]} 36. Re3 {[%emt 0:00:50]} e5 {[%emt 0:01:10]} 37. Bb2 {[%emt 0:00:30]} Rxd1 {[%emt 0:00:46]} 38. Qxd1 {[%emt 0:00:02]} Nf6 {[%emt 0:01:08]} 39. Nxf6+ {[%emt 0:00:06]} gxf6 {[%emt 0:00:12]} 40. Qh5 {[%emt 0:01:26]} Bg6 {[%emt 0:00:19]} 41. Qh4 {[%emt 0:00:21]} Rd8 {[%emt 0:00:34]} 42. Bxe5 {[%emt 0:00:12]} fxe5 {[%emt 0:00:08]} 43. Qxh6 {[%emt 0:00:46]} Bd2 {[%emt 0:00:21]} 44. h4 {[%emt 0:00:25]} Bxe3 {[%emt 0:00:24]} 45. Qxe3 {[%emt 0:00:01]} Rd4 {[%emt 0:01:18]} 46. Qe2 {[%emt 0:01:29]} e4 {[%emt 0:00:31]} 47. h5 {[%emt 0:00:09]} Bf5 {[%emt 0:00:07]} 48. Qe3 {[%emt 0:00:22]} Rxc4 {[%emt 0:00:40]} 49. Qf4 {[%emt 0:00:03]} Rd4 {[%emt 0:00:46]} 50. Qxf5 {[%emt 0:00:09]} e3 {[%emt 0:00:16]} 51. fxe3 {[%emt 0:00:41]} Qxe3 {[%emt 0:00:27]} 52. Bf3 {[%emt 0:03:08]} Rd2+ {[%emt 0:00:48]} 53. Kh3 {[%emt 0:00:02]} Qe6 {[%emt 0:00:42]} 54. Qxe6 {[%emt 0:00:11]} fxe6 {[%emt 0:00:02]} 55. Kg4 {[%emt 0:00:20]} Kg7 {[%emt 0:00:33]} 56. Kg5 {[%emt 0:00:10]} Rd3 {[%emt 0:00:41]} 57. h6+ {[%emt 0:01:19]} Kf7 {[%emt 0:00:21]} 58. Bh5+ {[%emt 0:01:25]} Kg8 {[%emt 0:00:18]} 59. g4 {[%emt 0:00:41]} Rd5+ {[%emt 0:00:33]} 60. Kg6 {[%emt 0:00:32]} Rxb5 {[%emt 0:00:39]} 61. h7+ {[%emt 0:00:10]} Kh8 {[%emt 0:00:06]} 62. g5 {[%emt 0:00:09]} Rb2 {[%emt 0:01:09]} 63. Kh6 {[%emt 0:01:01]} Rh2 {[%emt 0:00:17]} 64. g6 {[%emt 0:00:14]} Rg2 {[%emt 0:00:49]} 65. Be2 {[%emt 0:00:26]} Rh2+ {[%emt 0:00:19]} 66. Bh5 {[%emt 0:00:04]} Rg2 {[%emt 0:00:20]} 67. Be2 {[%emt 0:00:07]} e5 {[%emt 0:00:15]} 68. Bd3 {[%emt 0:00:03]} Rh2+ {[%emt 0:00:23]} 69. Kg5 {[%emt 0:00:05]} Kg7 {[%emt 0:00:25]} 70. Kf5 {[%emt 0:00:05]} Rh5+ {[%emt 0:00:33]} 71. Ke6 {[%emt 0:00:40]} Rh3 {[%emt 0:00:39]} 72. Bf5 {[%emt 0:01:36]} b5 {[%emt 0:00:43]} 73. Bxh3 {[%emt 0:00:05]} e4 {[%emt 0:00:10]} 74. h8=Q+ {[%emt 0:00:05]} Kxh8 {[%emt 0:00:06]} 75. Kf7 {[%emt 0:00:04]} 1-0

[Event "Hungarian Youth-ch I 2024"]
[Site "Szolnok"]
[Date "2024.04.03"]
[Round "4.9"]
[White "Megyaszai, Balazs"]
[Black "Csernyik, Mark"]
[Result "0-1"]
[ECO "B40"]
[WhiteElo "2029"]
[BlackElo "2016"]
[Annotator "NA RC"]
[PlyCount "85"]
[EventDate "2024.03.31"]
[EventType "swiss"]
[EventCountry "HUN"]
[SourceTitle "playchess.com"]
[Source "ChessBase"]
[SourceQuality "1"]
[TimeControl "5400+30"]

1. e4 {[%emt 0:00:22]} c5 {[%emt 0:00:29]} 2. Nf3 {[%emt 0:00:41]} e6 {[%emt 0:00:11]} 3. d4 {[%emt 0:00:56]} cxd4 {[%emt 0:00:07]} 4. Nxd4 {[%emt 0:00:25]} Nf6 {[%emt 0:00:09]} 5. Nc3 {[%emt 0:00:13]} Nc6 {[%emt 0:00:17]} 6. Ndb5 {[%emt 0:00:14]} Bb4 {[%emt 0:00:12]} 7. a3 {[%emt 0:01:24]} Bxc3+ {[%emt 0:00:14]} 8. Nxc3 {[%emt 0:00:14]} d5 {[%emt 0:00:12]} 9. exd5 {[%emt 0:01:34]} exd5 {[%emt 0:00:07]} 10. Bd3 {[%emt 0:00:18]} O-O {[%emt 0:00:23]} 11. O-O {[%emt 0:12:32]} Bg4 {[%emt 0:00:33]} 12. f3 {[%emt 0:05:13]} Bh5 {[%emt 0:01:15]} 13. Ne2 {[%emt 0:00:56]} Qb6+ {[%emt 0:01:31]} 14. Kh1 {[%emt 0:00:39]} Bg6 {[%emt 0:00:33]} 15. Nf4 {[%emt 0:03:58]} Bxd3 {[%emt 0:05:20]} 16. Nxd3 $11 {[%emt 0:02:50]} d4 {[%emt 0:03:49]} 17. Nf4 {[%emt 0:18:12]} Rfe8 {[%emt 0:02:43]} 18. b3 {[%emt 0:04:46]} Qc7 {[%emt 0:19:43]} 19. Bd2 {[%emt 0:16:49]} Rad8 {[%emt 0:04:24]} 20. Re1 {[%emt 0:02:44]} Ne7 {[%emt 0:03:01]} 21. Nd3 {[%emt 0:09:00]} Ned5 {[%emt 0:02:17]} 22. Rc1 {[%emt 0:04:58]} Nc3 {[%emt 0:08:09]} 23. Bxc3 {[%emt 0:03:12]} Qxc3 {[%emt 0:00:16]} 24. Rxe8+ {[%emt 0:01:12]} Rxe8 {[%emt 0:02:02]} 25. Nf4 {[%emt 0:00:16]} Qe3 {[%emt 0:00:53]} 26. Nd3 {[%emt 0:02:19]} Nd5 {[%emt 0:01:44]} 27. Qe1 {[%emt 0:00:18]} Rc8 {[%emt 0:02:11]} 28. Qxe3 {[%emt 0:02:10]} Nxe3 {[%emt 0:00:20]} 29. Ne1 {[%emt 0:00:03]} b5 {[%emt 0:01:32]} 30. Kg1 {[%emt 0:01:25]} a5 {[%emt 0:01:12]} 31. Kf2 {[%emt 0:00:31]} Rc3 {[%emt 0:02:12]} 32. Ke2 {[%emt 0:01:56]} a4 {[%emt 0:00:37]} 33. bxa4 {[%emt 0:00:46]} bxa4 {[%emt 0:00:11]} 34. Rb1 {[%emt 0:00:18]} g6 {[%emt 0:00:42]} 35. Rb4 {[%emt 0:00:37]} Nxc2 {[%emt 0:01:18]} 36. Nxc2 {[%emt 0:01:06]} d3+ {[%emt 0:05:36]} 37. Kd2 {[%emt 0:00:08]} dxc2 {[%emt 0:00:27]} 38. Kc1 {[%emt 0:00:01]} Rxa3 {[%emt 0:00:50]} 39. g4 {[%emt 0:00:36]} Rxf3 {[%emt 0:00:18]} 40. Rxa4 {[%emt 0:00:09]} Rh3 {[%emt 0:01:22]} 41. Kxc2 {[%emt 0:00:10]} Rxh2+ {[%emt 0:00:05]} 42. Kd3 {[%emt 0:00:09]} Rh4 {[%emt 0:00:12]} 43. Kd4 0-1

[Event "Hungarian Youth-ch I 2024"]
[Site "Szolnok"]
[Date "2024.04.03"]
[Round "4.10"]
[White "Panda, Barnabas"]
[Black "Gyorfi, Adam"]
[Result "1-0"]
[ECO "E32"]
[WhiteElo "2066"]
[BlackElo "2042"]
[Annotator "RC"]
[PlyCount "37"]
[EventDate "2024.03.31"]
[EventType "swiss"]
[EventCountry "HUN"]
[SourceTitle "playchess.com"]
[Source "ChessBase"]
[SourceQuality "1"]
[TimeControl "5400+30"]

1. d4 {[%emt 0:00:05]} Nf6 {[%emt 0:00:08]} 2. c4 {[%emt 0:00:13]} e6 {[%emt 0:00:10]} 3. Nc3 {[%emt 0:00:16]} Bb4 {[%emt 0:00:27]} 4. Qc2 {[%emt 0:00:21]} O-O {[%emt 0:00:58]} 5. Nf3 {[%emt 0:00:28]} d5 {[%emt 0:02:06]} 6. Bg5 {[%emt 0:02:52]} dxc4 {[%emt 0:02:42]} 7. e3 {[%emt 0:06:54]} b5 {[%emt 0:05:54]} 8. a4 {[%emt 0:01:25]} c6 {[%emt 0:02:08]} 9. Bxf6 {[%emt 0:05:27]} Qxf6 {[%emt 0:01:24]} 10. axb5 {[%emt 0:02:43]} Bb7 {[%emt 0:12:12]} 11. bxc6 {[%emt 0:08:00]} Nxc6 {[%emt 0:02:38]} 12. Bxc4 {[%emt 0:02:00]} e5 {[%emt 0:05:05]} 13. O-O {[%emt 0:15:05]} exd4 {[%emt 0:07:57]} 14. Nd5 {[%emt 0:02:22]} Qd6 {[%emt 0:04:06]} 15. Ng5 {[%emt 0:10:14]} g6 {[%emt 0:07:34]} 16. Qb3 {[%emt 0:01:56]} Kg7 {[%emt 0:16:53]} 17. Nxb4 {[%emt 0:07:01]} Qxb4 {[%emt 0:02:49]} 18. Bxf7 {[%emt 0:00:40]} h6 {[%emt 0:02:44]} 19. Qe6 {[%emt 0:00:28]} 1-0

[Event "Hungarian Youth-ch I 2024"]
[Site "Szolnok"]
[Date "2024.04.03"]
[Round "4.11"]
[White "Lehocz, Jozsef Jr."]
[Black "Sinoros-Szabo, Daniel"]
[Result "1-0"]
[ECO "A01"]
[WhiteElo "2143"]
[BlackElo "1971"]
[Annotator "RC"]
[PlyCount "73"]
[EventDate "2024.03.31"]
[EventType "swiss"]
[EventCountry "HUN"]
[SourceTitle "playchess.com"]
[Source "ChessBase"]
[SourceQuality "1"]
[TimeControl "5400+30"]

1. b3 {[%emt 0:00:19]} e5 {[%emt 0:00:49]} 2. Bb2 {[%emt 0:00:08]} Nc6 {[%emt 0:00:13]} 3. e3 {[%emt 0:00:13]} Nf6 {[%emt 0:01:25]} 4. Bb5 {[%emt 0:01:49]} e4 {[%emt 0:06:40]} 5. d4 {[%emt 0:13:25]} a6 {[%emt 0:09:15]} 6. Bxc6 {[%emt 0:00:19]} dxc6 {[%emt 0:03:53]} 7. c4 {[%emt 0:01:03]} Bd6 {[%emt 0:01:30]} 8. Nc3 {[%emt 0:02:34]} c5 {[%emt 0:06:07]} 9. dxc5 {[%emt 0:04:49]} Bxc5 {[%emt 0:00:51]} 10. Qxd8+ {[%emt 0:00:58]} Kxd8 {[%emt 0:00:05]} 11. O-O-O+ {[%emt 0:01:03]} Ke7 {[%emt 0:08:47]} 12. Nd5+ {[%emt 0:07:12]} Nxd5 {[%emt 0:00:29]} 13. Rxd5 {[%emt 0:01:00]} b6 {[%emt 0:10:20]} 14. Ne2 {[%emt 0:20:26]} f6 {[%emt 0:11:22]} 15. Ng3 {[%emt 0:02:55]} Bd6 {[%emt 0:14:19]} 16. Nxe4 {[%emt 0:05:02]} Bb7 {[%emt 0:04:08]} 17. Nxd6 {[%emt 0:00:51]} Bxd5 {[%emt 0:01:06]} 18. Nf5+ {[%emt 0:00:06]} Ke6 {[%emt 0:02:45]} 19. Nd4+ {[%emt 0:00:05]} Kd6 {[%emt 0:00:15]} 20. cxd5 {[%emt 0:00:51]} Kxd5 {[%emt 0:01:04]} 21. Rd1 {[%emt 0:03:30]} Rhg8 {[%emt 0:02:27]} 22. f3 {[%emt 0:02:39]} c5 {[%emt 0:03:36]} 23. Nf5+ {[%emt 0:00:34]} Ke6 {[%emt 0:00:33]} 24. e4 {[%emt 0:00:06]} Rad8 {[%emt 0:01:38]} 25. Nxg7+ {[%emt 0:00:56]} Kf7 {[%emt 0:01:15]} 26. Rxd8 {[%emt 0:00:10]} Rxd8 {[%emt 0:00:05]} 27. Nh5 {[%emt 0:00:13]} Kg6 {[%emt 0:02:01]} 28. Nxf6 {[%emt 0:01:05]} h5 {[%emt 0:02:10]} 29. Nd5 {[%emt 0:00:25]} h4 {[%emt 0:02:21]} 30. Nf4+ {[%emt 0:01:09]} Kf7 {[%emt 0:00:52]} 31. g4 {[%emt 0:03:00]} hxg3 {[%emt 0:00:37]} 32. hxg3 {[%emt 0:00:07]} b5 {[%emt 0:00:32]} 33. Kc2 {[%emt 0:01:00]} a5 {[%emt 0:00:40]} 34. g4 {[%emt 0:02:01]} b4 {[%emt 0:00:46]} 35. Nd3 {[%emt 0:01:47]} Rc8 {[%emt 0:00:29]} 36. f4 {[%emt 0:00:30]} Ke7 {[%emt 0:00:29]} 37. Ne5 {[%emt 0:00:26]} 1-0

[Event "Hungarian Youth-ch I 2024"]
[Site "Szolnok"]
[Date "2024.04.03"]
[Round "4.12"]
[White "Kovacs, Kristof"]
[Black "Feher, Botond"]
[Result "0-1"]
[ECO "D02"]
[WhiteElo "2000"]
[BlackElo "2018"]
[Annotator "RC"]
[PlyCount "84"]
[EventDate "2024.03.31"]
[EventType "swiss"]
[EventCountry "HUN"]
[SourceTitle "playchess.com"]
[Source "ChessBase"]
[SourceQuality "1"]
[TimeControl "5400+30"]

1. d4 {[%emt 0:00:04]} d5 {[%emt 0:00:53]} 2. Nf3 {[%emt 0:00:16]} e6 {[%emt 0:02:41]} 3. g3 {[%emt 0:00:41]} Nf6 {[%emt 0:05:34]} 4. Bg2 {[%emt 0:00:42]} c5 {[%emt 0:02:22]} 5. O-O {[%emt 0:01:08]} b6 {[%emt 0:12:18]} 6. b3 {[%emt 0:02:01]} Bb7 {[%emt 0:01:14]} 7. Bb2 {[%emt 0:00:42]} Nbd7 {[%emt 0:04:27]} 8. a4 {[%emt 0:03:19]} a6 {[%emt 0:02:26]} 9. e3 {[%emt 0:03:38]} Rc8 {[%emt 0:02:34]} 10. Nbd2 {[%emt 0:07:32]} c4 {[%emt 0:07:50]} 11. c3 {[%emt 0:01:32]} b5 {[%emt 0:10:10]} 12. Re1 {[%emt 0:09:43]} Qc7 {[%emt 0:20:34]} 13. Qc2 {[%emt 0:08:08]} Bd6 {[%emt 0:02:07]} 14. e4 {[%emt 0:03:50]} Nxe4 {[%emt 0:01:42]} 15. Nxe4 {[%emt 0:00:17]} dxe4 {[%emt 0:00:05]} 16. Ng5 {[%emt 0:01:05]} Nf6 {[%emt 0:02:05]} 17. axb5 {[%emt 0:00:49]} axb5 {[%emt 0:00:09]} 18. Nxe4 {[%emt 0:01:21]} Nxe4 {[%emt 0:00:08]} 19. Bxe4 {[%emt 0:00:09]} Bxe4 {[%emt 0:00:04]} 20. Rxe4 {[%emt 0:01:37]} O-O {[%emt 0:00:11]} 21. Rh4 {[%emt 0:04:06]} f5 {[%emt 0:05:27]} 22. Qe2 {[%emt 0:01:59]} Rfe8 {[%emt 0:03:00]} 23. b4 {[%emt 0:04:07]} e5 {[%emt 0:02:02]} 24. d5 {[%emt 0:01:54]} Ra8 {[%emt 0:01:00]} 25. Rd1 {[%emt 0:00:48]} e4 {[%emt 0:00:38]} 26. Bc1 {[%emt 0:00:49]} g6 {[%emt 0:03:27]} 27. Qe3 {[%emt 0:02:30]} Ra2 {[%emt 0:02:10]} 28. Qh6 {[%emt 0:01:35]} Qg7 {[%emt 0:00:36]} 29. Qxg7+ {[%emt 0:02:03]} Kxg7 {[%emt 0:00:02]} 30. Be3 {[%emt 0:00:14]} h5 {[%emt 0:00:58]} 31. Bc5 {[%emt 0:01:55]} Rd8 {[%emt 0:00:06]} 32. f3 {[%emt 0:02:53]} g5 {[%emt 0:03:45]} 33. Rxh5 {[%emt 0:02:43]} Kg6 {[%emt 0:00:02]} 34. Bxd6 {[%emt 0:01:33]} Kxh5 {[%emt 0:00:09]} 35. Bc7 {[%emt 0:01:49]} Rd7 {[%emt 0:02:06]} 36. fxe4 {[%emt 0:01:58]} Rxc7 {[%emt 0:01:49]} 37. e5 {[%emt 0:00:23]} Re2 {[%emt 0:00:09]} 38. d6 {[%emt 0:00:30]} Rd7 {[%emt 0:00:16]} 39. Rd5 {[%emt 0:00:07]} Kg6 {[%emt 0:00:43]} 40. Rxb5 {[%emt 0:00:47]} Kf7 {[%emt 0:00:06]} 41. Kf1 {[%emt 0:01:38]} Re4 {[%emt 0:00:31]} 42. g4 {[%emt 0:00:41]} fxg4 {[%emt 0:00:36]} 0-1

[Event "Hungarian Youth-ch I 2024"]
[Site "Szolnok"]
[Date "2024.04.03"]
[Round "4.13"]
[White "Sass, Oscar"]
[Black "Tagai, Marton"]
[Result "0-1"]
[ECO "C47"]
[WhiteElo "1867"]
[BlackElo "1914"]
[Annotator "NA RC"]
[PlyCount "65"]
[EventDate "2024.03.31"]
[EventType "swiss"]
[EventCountry "HUN"]
[SourceTitle "playchess.com"]
[Source "ChessBase"]
[SourceQuality "1"]
[TimeControl "5400+30"]

1. e4 {[%emt 0:00:03]} e5 {[%emt 0:00:05]} 2. Nf3 {[%emt 0:00:04]} Nc6 {[%emt 0:00:05]} 3. Nc3 {[%emt 0:00:05]} Nf6 {[%emt 0:00:03]} 4. d4 {[%emt 0:00:07]} exd4 {[%emt 0:00:06]} 5. Nxd4 {[%emt 0:00:05]} Bb4 {[%emt 0:00:13]} 6. Nxc6 {[%emt 0:00:04]} bxc6 {[%emt 0:00:15]} 7. Bd3 {[%emt 0:00:06]} d5 {[%emt 0:00:09]} 8. exd5 {[%emt 0:00:04]} cxd5 {[%emt 0:00:06]} 9. O-O {[%emt 0:00:05]} O-O {[%emt 0:00:08]} 10. h3 {[%emt 0:00:09]} Rb8 {[%emt 0:00:16]} 11. Qf3 {[%emt 0:00:45]} Re8 {[%emt 0:00:10]} 12. Bf4 {[%emt 0:02:54]} Ba5 {[%emt 0:15:39]} 13. Rab1 {[%emt 0:07:19]} Bb7 {[%emt 0:03:09]} 14. Ne2 {[%emt 0:10:31]} d4 {[%emt 0:03:59]} 15. Qg3 {[%emt 0:00:13]} Nh5 {[%emt 0:02:45]} 16. Qg4 {[%emt 0:00:15]} Nxf4 {[%emt 0:09:20]} 17. Nxf4 {[%emt 0:00:14]} g6 {[%emt 0:04:42]} 18. h4 {[%emt 0:08:56]} Qd6 {[%emt 0:18:08]} 19. h5 {[%emt 0:07:41]} Bc8 {[%emt 0:04:42]} 20. Qh4 {[%emt 0:02:25]} Bd2 {[%emt 0:07:42]} 21. hxg6 {[%emt 0:00:49]} hxg6 {[%emt 0:01:47]} 22. Ne2 {[%emt 0:01:35]} c5 {[%emt 0:02:33]} 23. Rbd1 {[%emt 0:04:59]} Ba5 {[%emt 0:00:09]} 24. Ng3 {[%emt 0:00:41]} Bd8 {[%emt 0:01:54]} 25. Qh6 {[%emt 0:01:11]} Bg4 {[%emt 0:00:45]} 26. Rde1 {[%emt 0:03:46]} Rxe1 {[%emt 0:05:03]} 27. Rxe1 {[%emt 0:00:05]} Qf8 {[%emt 0:05:10]} 28. Qf4 {[%emt 0:00:31]} Ba5 {[%emt 0:00:56]} 29. Re4 {[%emt 0:02:50]} Be6 {[%emt 0:04:35]} 30. b3 {[%emt 0:01:19]} Qd8 {[%emt 0:04:09]} 31. Rxe6 {[%emt 0:12:56]} fxe6 {[%emt 0:02:15]} 32. Bxg6 {[%emt 0:00:07]} Bc7 {[%emt 0:03:59]} 33. Qf7+ {[%emt 0:00:11]} 0-1

[Event "Hungarian Youth-ch I 2024"]
[Site "Szolnok"]
[Date "2024.04.03"]
[Round "4.14"]
[White "Janosi, Bence"]
[Black "Jokai, Bence"]
[Result "0-1"]
[ECO "D37"]
[WhiteElo "1893"]
[BlackElo "1750"]
[Annotator "NA RC"]
[PlyCount "44"]
[EventDate "2024.03.31"]
[EventType "swiss"]
[EventCountry "HUN"]
[SourceTitle "playchess.com"]
[Source "ChessBase"]
[SourceQuality "1"]
[TimeControl "5400+30"]

1. d4 {[%emt 0:00:05]} d5 {[%emt 0:00:08]} 2. c4 {[%emt 0:00:04]} e6 {[%emt 0:00:06]} 3. Nc3 {[%emt 0:00:06]} Nf6 {[%emt 0:00:05]} 4. Nf3 {[%emt 0:00:09]} Nbd7 {[%emt 0:00:07]} 5. Bf4 {[%emt 0:04:39]} dxc4 {[%emt 0:00:22]} 6. e4 {[%emt 0:14:38]} Bb4 {[%emt 0:00:12]} 7. Bg5 {[%emt 0:04:39]} b5 {[%emt 0:03:59]} 8. e5 {[%emt 0:09:47]} h6 {[%emt 0:00:11]} 9. Bh4 {[%emt 0:00:24]} g5 {[%emt 0:01:56]} 10. Nxg5 {[%emt 0:12:53]} hxg5 {[%emt 0:00:19]} 11. Bxg5 {[%emt 0:01:02]} Rg8 {[%emt 0:08:52]} 12. Bxf6 {[%emt 0:10:25]} Nxf6 {[%emt 0:00:57]} 13. exf6 {[%emt 0:01:48]} Qxf6 {[%emt 0:00:57]} 14. a3 {[%emt 0:11:37]} Bxc3+ {[%emt 0:04:35]} 15. bxc3 {[%emt 0:00:07]} Bd7 {[%emt 0:22:24]} 16. Qc2 {[%emt 0:05:16]} c5 {[%emt 0:02:23]} 17. Rd1 {[%emt 0:06:06]} Bc6 {[%emt 0:02:34]} 18. Qh7 {[%emt 0:10:56]} Ke7 {[%emt 0:01:28]} 19. Qh3 {[%emt 0:01:27]} Rad8 {[%emt 0:01:06]} 20. a4 {[%emt 0:02:28]} a6 {[%emt 0:01:59]} 21. Qe3 {[%emt 0:01:39]} Rg5 {[%emt 0:02:30]} 22. dxc5 {[%emt 0:00:35]} Re5 {[%emt 0:00:10]} 0-1

[Event "Hungarian Youth-ch I 2024"]
[Site "Szolnok"]
[Date "2024.04.03"]
[Round "4.15"]
[White "Meszaros-Csonka, David"]
[Black "Papai, Mate"]
[Result "1/2-1/2"]
[ECO "D00"]
[WhiteElo "1941"]
[BlackElo "1887"]
[Annotator "RC"]
[PlyCount "68"]
[EventDate "2024.03.31"]
[EventType "swiss"]
[EventCountry "HUN"]
[SourceTitle "playchess.com"]
[Source "ChessBase"]
[SourceQuality "1"]
[TimeControl "5400+30"]

1. d4 {[%emt 0:00:36]} d5 {[%emt 0:00:16]} 2. Bg5 {[%emt 0:00:18]} Nf6 {[%emt 0:01:46]} 3. Bxf6 {[%emt 0:00:05]} exf6 {[%emt 0:00:38]} 4. e3 {[%emt 0:00:05]} c6 {[%emt 0:03:27]} 5. c4 {[%emt 0:00:33]} Be6 {[%emt 0:04:32]} 6. Qb3 {[%emt 0:12:42]} Qc7 {[%emt 0:00:41]} 7. Nc3 {[%emt 0:00:19]} Be7 {[%emt 0:13:09]} 8. Nf3 {[%emt 0:08:23]} O-O {[%emt 0:01:25]} 9. Bd3 {[%emt 0:04:35]} Nd7 {[%emt 0:13:20]} 10. cxd5 {[%emt 0:17:06]} cxd5 {[%emt 0:00:49]} 11. O-O {[%emt 0:01:08]} Nb6 {[%emt 0:04:11]} 12. Rac1 {[%emt 0:04:09]} Qd8 {[%emt 0:15:14]} 13. Nd2 {[%emt 0:12:04]} Rc8 {[%emt 0:04:30]} 14. Na4 {[%emt 0:03:26]} Nxa4 {[%emt 0:08:57]} 15. Qxa4 {[%emt 0:00:07]} a6 {[%emt 0:04:16]} 16. Rc2 {[%emt 0:12:12]} Rxc2 {[%emt 0:02:25]} 17. Qxc2 {[%emt 0:00:21]} g6 {[%emt 0:00:09]} 18. Rc1 {[%emt 0:06:40]} Qd7 {[%emt 0:00:41]} 19. Nb3 {[%emt 0:02:28]} b6 {[%emt 0:02:21]} 20. Qc6 {[%emt 0:07:01]} Qa7 {[%emt 0:01:24]} 21. Qc7 {[%emt 0:01:06]} Ra8 {[%emt 0:00:22]} 22. Kf1 {[%emt 0:02:33]} Kf8 {[%emt 0:01:16]} 23. Qxa7 {[%emt 0:01:31]} Rxa7 {[%emt 0:00:01]} 24. Rc6 {[%emt 0:01:25]} Bd8 {[%emt 0:00:08]} 25. Ke2 {[%emt 0:00:46]} Ke7 {[%emt 0:00:06]} 26. Kd2 {[%emt 0:01:13]} Kd7 {[%emt 0:00:23]} 27. Rc1 {[%emt 0:00:09]} f5 {[%emt 0:00:53]} 28. f3 {[%emt 0:00:30]} h5 {[%emt 0:00:39]} 29. f4 {[%emt 0:00:42]} h4 {[%emt 0:01:51]} 30. Ke2 {[%emt 0:00:36]} Be7 {[%emt 0:01:29]} 31. Nd2 {[%emt 0:00:34]} Ra8 {[%emt 0:00:39]} 32. Nf3 {[%emt 0:00:28]} Bf6 {[%emt 0:00:01]} 33. h3 {[%emt 0:00:33]} b5 {[%emt 0:02:45]} 34. b4 {[%emt 0:00:23]} Rc8 1/2-1/2

[Event "Hungarian Youth-ch I 2024"]
[Site "Szolnok"]
[Date "2024.04.03"]
[Round "4.16"]
[White "Li, Changxing"]
[Black "Minga-Nagy, Abel Inti"]
[Result "0-1"]
[ECO "B35"]
[WhiteElo "1755"]
[BlackElo "1929"]
[Annotator "RC"]
[PlyCount "46"]
[EventDate "2024.03.31"]
[EventType "swiss"]
[EventCountry "HUN"]
[SourceTitle "playchess.com"]
[Source "ChessBase"]
[SourceQuality "1"]
[TimeControl "5400+30"]

1. e4 {[%emt 0:00:04]} c5 {[%emt 0:00:17]} 2. Nf3 {[%emt 0:00:06]} Nc6 {[%emt 0:00:06]} 3. d4 {[%emt 0:00:08]} cxd4 {[%emt 0:00:06]} 4. Nxd4 {[%emt 0:00:05]} g6 {[%emt 0:00:06]} 5. Nc3 {[%emt 0:00:22]} Bg7 {[%emt 0:00:12]} 6. Be3 {[%emt 0:00:10]} Nf6 {[%emt 0:00:15]} 7. Bc4 {[%emt 0:02:10]} Qa5 {[%emt 0:01:51]} 8. Nb3 {[%emt 0:12:21]} Qb4 {[%emt 0:02:00]} 9. Bd3 {[%emt 0:00:23]} Nxe4 {[%emt 0:06:26]} 10. Bxe4 {[%emt 0:00:49]} Bxc3+ {[%emt 0:00:09]} 11. bxc3 {[%emt 0:00:06]} Qxe4 {[%emt 0:00:14]} 12. O-O {[%emt 0:00:16]} d6 {[%emt 0:08:07]} 13. Re1 {[%emt 0:02:22]} Qf5 {[%emt 0:08:37]} 14. Nd4 {[%emt 0:02:23]} Nxd4 {[%emt 0:05:23]} 15. Bxd4 {[%emt 0:01:11]} e5 {[%emt 0:01:32]} 16. Be3 {[%emt 0:01:56]} Qe6 {[%emt 0:03:28]} 17. Bh6 {[%emt 0:01:29]} Bd7 {[%emt 0:01:54]} 18. Rb1 {[%emt 0:02:14]} Bc6 {[%emt 0:00:43]} 19. Qc1 {[%emt 0:04:40]} O-O-O {[%emt 0:01:24]} 20. Qa3 {[%emt 0:02:19]} Qg4 {[%emt 0:01:04]} 21. f3 {[%emt 0:00:28]} Bxf3 {[%emt 0:00:23]} 22. Re2 {[%emt 0:01:51]} Bxe2 {[%emt 0:00:34]} 23. Qxa7 {[%emt 0:00:12]} Bf3 {[%emt 0:01:09]} 0-1